fUST/lending_fUST_20250708
["ID","MTS","AMOUNT","RATE_DAILY","PERIOD"]
[370305508,1751945440266,-460.0,0.00019178,2]
[370305510,1751945440277,-460.0,0.00019178,2]
[370305512,1751945440288,-151.0,0.00019178,2]
[370305514,1751945440299,-460.0,0.00019178,2]
[370305516,1751945440311,-463.02910312,0.00019178,2]
[370305519,1751945440322,-468.17449423,0.00019178,2]
[370305521,1751945440332,-461.27407599,0.00019178,2]
[370305523,1751945440344,-460.0,0.00019178,2]
[370305525,1751945440355,-460.0,0.00019178,2]
[370305527,1751945440366,-461.18561646,0.00019178,2]
[370305530,1751945440377,-676.35,0.00019178,2]
[370305532,1751945440387,-460.0,0.00019178,2]
[370305534,1751945440398,-466.891432,0.00019178,2]
[370305536,1751945440408,-460.0,0.00019178,2]
[370305538,1751945440418,-461.23198834,0.00019178,2]
[370305540,1751945440429,-460.0,0.00019178,2]
[370305542,1751945440440,-2284.69,0.00019178,2]
[370305545,1751945440451,-460.0,0.00019178,2]
[370305547,1751945440462,-461.31948465,0.00019178,2]
[370305549,1751945440474,-460.0,0.00019178,2]
[370305551,1751945440484,-461.7886833,0.00019178,2]
[370305554,1751945440496,-460.0,0.00019178,2]
[370305578,1751945440706,-460.0,0.00019178,2]
[370305580,1751945440716,-460.0,0.00019178,2]
[370305581,1751945440726,-460.0,0.00019178,2]
[370305583,1751945440735,-460.0,0.00019178,2]
[370305585,1751945440744,-460.0,0.00019178,2]
[370305586,1751945440754,-460.0,0.00019178,2]
[370305588,1751945440763,-460.0,0.00019178,2]
[370305590,1751945440772,-462.82232244,0.00019178,2]
[370305592,1751945440782,-460.0,0.00019178,2]
[370305594,1751945440791,-491.18524257,0.00019178,2]
[370305595,1751945440801,-460.0,0.00019178,2]
[370305597,1751945440810,-151.0,0.00019178,2]
[370305599,1751945440819,-460.0,0.00019178,2]
[370305601,1751945440829,-460.0,0.00019178,2]
[370305603,1751945440838,-464.46168204,0.00019178,2]
[370305605,1751945440847,-460.0,0.00019178,2]
[370305606,1751945440857,-460.0,0.00019178,2]
[370305608,1751945440866,-2681.21,0.00019178,2]
[370305610,1751945440875,-460.0,0.00019178,2]
[370305612,1751945440884,-461.089111,0.00019178,2]
[370305613,1751945440894,-562.89800703,0.00019178,2]
[370305615,1751945440903,-151.0,0.00019178,2]
[370305617,1751945440912,-463.15584125,0.00019178,2]
[370305619,1751945440921,-460.0,0.00019178,2]
[370305621,1751945440930,-461.27414431,0.00019178,2]
[370305623,1751945440940,-460.0,0.00019178,2]
[370305624,1751945440949,-460.0,0.00019178,2]
[370305626,1751945440958,-460.0,0.00019178,2]
[370305628,1751945440967,-460.0,0.00019178,2]
[370305630,1751945440977,-2034.18,0.00019178,2]
[370305632,1751945440986,-460.0,0.00019178,2]
[370305633,1751945440996,-460.0,0.00019178,2]
[370305635,1751945441005,-1154.0,0.00019178,2]
[370305637,1751945441014,-460.0,0.00019178,2]
[370305639,1751945441023,-460.0,0.00019178,2]
[370305640,1751945441032,-460.0,0.00019178,2]
[370305642,1751945441041,-460.0,0.00019178,2]
[370305644,1751945441051,-460.65745801,0.00019178,2]
[370305646,1751945441060,-460.0,0.00019178,2]
[370305648,1751945441069,-582.73674846,0.00019178,2]
[370305649,1751945441079,-460.0,0.00019178,2]
[370305651,1751945441088,-460.0,0.00019178,2]
[370305653,1751945441097,-460.0,0.00019178,2]
[370305655,1751945441106,-460.0,0.00019178,2]
[370305657,1751945441115,-460.0,0.00019178,2]
[370305658,1751945441124,-577.03,0.00019178,2]
[370305660,1751945441133,-460.0,0.00019178,2]
[370305662,1751945441144,-491.12,0.00019178,2]
[370305664,1751945441154,-460.0,0.00019178,2]
[370305665,1751945441164,-460.0,0.00019178,2]
[370305667,1751945441173,-2036.59,0.00019178,2]
[370305669,1751945441182,-501.62390199,0.00019178,2]
[370305671,1751945441193,-460.0,0.00019178,2]
[370305672,1751945441202,-460.0,0.00019178,2]
[370305674,1751945441213,-1861.29,0.00019178,2]
[370305676,1751945441222,-460.0,0.00019178,2]
[370305678,1751945441233,-460.0,0.00019178,2]
[370305680,1751945441242,-460.0,0.00019178,2]
[370305682,1751945441252,-460.0,0.00019178,2]
[370305684,1751945441261,-460.0,0.00019178,2]
[370305686,1751945441270,-460.0,0.00019178,2]
[370305688,1751945441279,-460.0,0.00019178,2]
[370305689,1751945441289,-523.91,0.00019178,2]
[370305691,1751945441299,-460.0,0.00019178,2]
[370305693,1751945441309,-460.0,0.00019178,2]
[370305695,1751945441318,-460.0,0.00019178,2]
[370305697,1751945441327,-765.03,0.00019178,2]
[370305698,1751945441336,-460.0,0.00019178,2]
[370305700,1751945441345,-468.15732911,0.00019178,2]
[370305702,1751945441354,-460.0,0.00019178,2]
[370305704,1751945441364,-466.02396386,0.00019178,2]
[370305706,1751945441374,-465.53738075,0.00019178,2]
[370305708,1751945441384,-460.0,0.00019178,2]
[370305710,1751945441393,-460.0,0.00019178,2]
[370305711,1751945441403,-460.0,0.00019178,2]
[370305713,1751945441412,-501.13570673,0.00019178,2]
[370305715,1751945441421,-468.23038725,0.00019178,2]
[370305717,1751945441431,-460.64176758,0.00019178,2]
[370305719,1751945441441,-1317.67,0.00019178,2]
[370305721,1751945441450,-507.57453637,0.00019178,2]
[370305722,1751945441459,-1034.2,0.00019178,2]
[370305724,1751945441468,-460.0,0.00019178,2]
[370305726,1751945441477,-460.0,0.00019178,2]
[370305728,1751945441487,-460.0,0.00019178,2]
[370305730,1751945441496,-460.0,0.00019178,2]
[370305732,1751945441506,-460.0,0.00019178,2]
[370305734,1751945441515,-902.54,0.00019178,2]
[370305735,1751945441524,-1665.05,0.00019178,2]
[370305737,1751945441534,-460.0,0.00019178,2]
[370305739,1751945441543,-151.0,0.00019178,2]
[370305741,1751945441553,-617.19,0.00019178,2]
[370305743,1751945441562,-460.0,0.00019178,2]
[370305744,1751945441571,-460.0,0.00019178,2]
[370305746,1751945441581,-460.0,0.00019178,2]
[370305748,1751945441590,-460.0,0.00019178,2]
[370305750,1751945441600,-460.0,0.00019178,2]
[370305752,1751945441609,-460.0,0.00019178,2]
[370305754,1751945441618,-460.0,0.00019178,2]
[370305756,1751945441628,-460.0,0.00019178,2]
[370305758,1751945441637,-460.0,0.00019178,2]
[370305759,1751945441646,-460.0,0.00019178,2]
[370305761,1751945441656,-465.64436908,0.00019178,2]
[370305763,1751945441665,-1097.07,0.00019178,2]
[370305765,1751945441674,-462.63610927,0.00019178,2]
[370305767,1751945441684,-460.0,0.00019178,2]
[370305769,1751945441693,-460.0,0.00019178,2]
[370305771,1751945441703,-460.0,0.00019178,2]
[370305772,1751945441713,-460.0,0.00019178,2]
[370305773,1751945441723,-460.0,0.00019178,2]
[370305774,1751945441732,-276.08434905,0.00019178,2]
[370305775,1751945441852,-183.91565095,0.00019178,2]
[370305776,1751945441862,-461.63547021,0.00019178,2]
[370305777,1751945441871,-460.0,0.00019178,2]
[370305778,1751945441881,-460.0,0.00019178,2]
[370305779,1751945441891,-1827.08624713,0.00019178,2]
[370305780,1751945441903,-737.39643018,0.00019178,2]
[370306060,1751945445938,-516.95631384,0.00019178,2]
[370307974,1751945760639,396.29221558,0.00027397,120]
[370307977,1751946254928,326.16475915,0.000181,9]
[370307979,1751946448100,-229.80705574,0.00018824,2]
[370307980,1751946498868,2313.2314738,0.00027397,120]
[370308022,1751946632203,-405.19294426,0.00018824,2]
[370308024,1751946632214,-294.66305574,0.00018894,2]
[370308034,1751946632308,-1088.2559217,0.00018894,2]
[370308037,1751946632319,-650.84243801,0.00018894,2]
[370308040,1751946632331,-2743.23858455,0.00018894,2]
[370308042,1751946632340,-300.0,0.00019074,2]
[370308044,1751946632350,-300.0,0.00019074,2]
[370308046,1751946632360,-300.0,0.00019074,2]
[370308048,1751946632369,-95.09936375,0.00019074,2]
[370308050,1751946632381,-118.90063625,0.00019074,2]
[370308052,1751946632390,-1200.0,0.00019074,2]
[370308054,1751946632402,-300.0,0.00019074,2]
[370308056,1751946632410,-949.22618416,0.00019075,2]
[370308058,1751946632423,-480.03125715,0.00019075,2]
[370308060,1751946632434,-5912.97178052,0.00019075,2]
[370308062,1751946632444,-4230.27263438,0.00019078,2]
[370308596,1751946638287,-222.40192183,0.00019074,2]
[370308599,1751946638299,-158.89847562,0.00019074,2]
[370308601,1751946638313,-163.45988596,0.00019074,2]
[370308604,1751946638326,-196.47249888,0.00019074,2]
[370308606,1751946638338,-5653.44941235,0.00019078,2]
[370308609,1751946638360,-500.0,0.00019078,2]
[370308618,1751946638444,-1192.19545897,0.00019078,2]
[370308622,1751946638455,-388.78902668,0.00019178,2]
[370308843,1751946640507,-75.28438463,0.00019178,2]
[370308845,1751946640518,-460.0,0.00019178,2]
[370308847,1751946640530,-460.0,0.00019178,2]
[370308849,1751946640541,-256.09235317,0.00019178,2]
[370308852,1751946640555,-442.40573471,0.00019178,2]
[370308854,1751946640568,-460.0,0.00019178,2]
[370308856,1751946640580,-648.16,0.00019178,2]
[370308858,1751946640593,-460.0,0.00019178,2]
[370308861,1751946640604,-335.10902193,0.00019178,2]
[370308863,1751946640616,-460.0,0.00019178,2]
[370308865,1751946640627,-278.74648992,0.00019178,2]
[370308867,1751946640638,-460.0,0.00019178,2]
[370308869,1751946640652,-462.02201636,0.00019178,2]
[370308872,1751946640671,-1277.2,0.00019178,2]
[370308874,1751946640682,-460.0,0.00019178,2]
[370308876,1751946640693,-466.17426761,0.00019178,2]
[370308878,1751946640704,-460.0,0.00019178,2]
[370308880,1751946640715,-460.0,0.00019178,2]
[370308882,1751946640726,-460.0,0.00019178,2]
[370308884,1751946640737,-471.15447888,0.00019178,2]
[370308886,1751946640748,-176.66188115,0.00019178,2]
[370308889,1751946640759,-235.96082453,0.00019178,2]
[370308891,1751946640770,-460.0,0.00019178,2]
[370308893,1751946640781,-460.0,0.00019178,2]
[370308895,1751946640792,-460.0,0.00019178,2]
[370308897,1751946640803,-460.0,0.00019178,2]
[370308899,1751946640814,-460.0,0.00019178,2]
[370308901,1751946640825,-460.0,0.00019178,2]
[370308903,1751946640836,-540.0,0.00019178,2]
[370308906,1751946640847,-460.0,0.00019178,2]
[370308908,1751946640858,-460.0,0.00019178,2]
[370308910,1751946640869,-460.0,0.00019178,2]
[370308912,1751946640880,-1209.03,0.00019178,2]
[370308914,1751946640891,-460.0,0.00019178,2]
[370308916,1751946640904,-644.03,0.00019178,2]
[370308919,1751946640916,-460.0,0.00019178,2]
[370308921,1751946640927,-460.0,0.00019178,2]
[370308923,1751946640939,-460.0,0.00019178,2]
[370308925,1751946640950,-460.0,0.00019178,2]
[370308927,1751946640962,-460.0,0.00019178,2]
[370308929,1751946640973,-460.0,0.00019178,2]
[370308932,1751946640984,-460.0,0.00019178,2]
[370308934,1751946640996,-860.61,0.00019178,2]
[370308936,1751946641007,-2250.07,0.00019178,2]
[370308938,1751946641018,-460.0,0.00019178,2]
[370308940,1751946641030,-1226.14,0.00019178,2]
[370308942,1751946641041,-460.0,0.00019178,2]
[370308944,1751946641054,-460.0,0.00019178,2]
[370308947,1751946641066,-460.0,0.00019178,2]
[370308949,1751946641078,-460.0,0.00019178,2]
[370308951,1751946641089,-460.0,0.00019178,2]
[370308953,1751946641101,-460.0,0.00019178,2]
[370308955,1751946641113,-460.0,0.00019178,2]
[370308957,1751946641123,-1021.67,0.00019178,2]
[370308959,1751946641134,-460.0,0.00019178,2]
[370308961,1751946641146,-426.18733939,0.00019178,2]
[370308964,1751946641157,-460.0,0.00019178,2]
[370308966,1751946641168,-1482.9,0.00019178,2]
[370308968,1751946641179,-460.0,0.00019178,2]
[370308970,1751946641190,-1709.27,0.00019178,2]
[370308972,1751946641201,-460.0,0.00019178,2]
[370308974,1751946641213,-3870.21,0.00019178,2]
[370308977,1751946641224,-679.83,0.00019178,2]
[370308979,1751946641235,-1490.0,0.00019178,2]
[370308981,1751946641247,-460.0,0.00019178,2]
[370308983,1751946641258,-460.0,0.00019178,2]
[370308985,1751946641270,-460.0,0.00019178,2]
[370308987,1751946641281,-460.0,0.00019178,2]
[370308990,1751946641292,-460.0,0.00019178,2]
[370308992,1751946641304,-460.0,0.00019178,2]
[370308994,1751946641315,-464.84575853,0.00019178,2]
[370308996,1751946641325,-463.40117641,0.00019178,2]
[370308998,1751946641336,-1135.27,0.00019178,2]
[370309000,1751946641347,-460.0,0.00019178,2]
[370309003,1751946641358,-460.0,0.00019178,2]
[370309005,1751946641368,-393.18898091,0.00019178,2]
[370309007,1751946641379,-460.0,0.00019178,2]
[370309009,1751946641389,-460.0,0.00019178,2]
[370309011,1751946641398,-460.0,0.00019178,2]
[370309013,1751946641408,-460.0,0.00019178,2]
[370309015,1751946641417,-1125.34,0.00019178,2]
[370309017,1751946641427,-460.0,0.00019178,2]
[370309019,1751946641436,-460.0,0.00019178,2]
[370309021,1751946641446,-460.0,0.00019178,2]
[370309023,1751946641455,-460.0,0.00019178,2]
[370309025,1751946641464,-460.0,0.00019178,2]
[370309035,1751946641685,-462.15401238,0.00019178,2]
[370309036,1751946641705,-460.0,0.00019178,2]
[370309037,1751946641715,-460.0,0.00019178,2]
[370309038,1751946641725,-464.15058809,0.00019178,2]
[370309039,1751946641734,-460.0,0.00019178,2]
[370309040,1751946641744,-460.0,0.00019178,2]
[370309042,1751946641753,-460.0,0.00019178,2]
[370309043,1751946641762,-460.0,0.00019178,2]
[370309044,1751946641771,-1012.69,0.00019178,2]
[370309045,1751946641780,-460.0,0.00019178,2]
[370309046,1751946641788,-1394.04,0.00019178,2]
[370309048,1751946641798,-460.0,0.00019178,2]
[370309050,1751946641807,-460.0,0.00019178,2]
[370309052,1751946641816,-464.74354099,0.00019178,2]
[370309054,1751946641826,-460.0,0.00019178,2]
[370309056,1751946641835,-460.0,0.00019178,2]
[370309058,1751946641844,-467.55824086,0.00019178,2]
[370309060,1751946641853,-460.0,0.00019178,2]
[370309062,1751946641863,-668.73,0.00019178,2]
[370309064,1751946641872,-460.0,0.00019178,2]
[370309066,1751946641881,-460.0,0.00019178,2]
[370309068,1751946641890,-460.0,0.00019178,2]
[370309070,1751946641900,-460.0,0.00019178,2]
[370309072,1751946641909,-2168.58,0.00019178,2]
[370309074,1751946641918,-460.0,0.00019178,2]
[370309076,1751946641927,-460.0,0.00019178,2]
[370309078,1751946641937,-460.0,0.00019178,2]
[370309080,1751946641946,-460.0,0.00019178,2]
[370309082,1751946641955,-460.0,0.00019178,2]
[370309084,1751946641964,-460.0,0.00019178,2]
[370309086,1751946641974,-2926.69,0.00019178,2]
[370309088,1751946641983,-460.0,0.00019178,2]
[370309090,1751946641992,-460.0,0.00019178,2]
[370309092,1751946642001,-510.35,0.00019178,2]
[370309094,1751946642011,-460.0,0.00019178,2]
[370309096,1751946642020,-540.83,0.00019178,2]
[370309098,1751946642030,-460.0,0.00019178,2]
[370309100,1751946642039,-2041.88,0.00019178,2]
[370309102,1751946642048,-460.0,0.00019178,2]
[370309104,1751946642057,-460.0,0.00019178,2]
[370309106,1751946642066,-500.0,0.00019178,2]
[370309108,1751946642076,-444.714087,0.00019215,2]
[370309110,1751946642085,-151.0,0.00019278,2]
[370309112,1751946642095,-151.0,0.00019278,2]
[370309114,1751946642104,-151.0,0.00019278,2]
[370309116,1751946642114,-151.0,0.00019278,2]
[370309117,1751946642124,-153.662459,0.00019278,2]
[370309119,1751946642133,-207.4,0.00019278,2]
[370309121,1751946642143,-690.642,0.00019278,2]
[370309123,1751946642152,-500.0,0.00019278,2]
[370309125,1751946642161,-500.0,0.00019278,2]
[370309127,1751946642170,-500.0,0.00019278,2]
[370309129,1751946642180,-500.0,0.00019278,2]
[370309131,1751946642189,-500.0,0.00019278,2]
[370309133,1751946642199,-500.0,0.00019278,2]
[370309135,1751946642210,-500.0,0.00019278,2]
[370309138,1751946642220,-500.0,0.00019278,2]
[370309139,1751946642229,-500.0,0.00019278,2]
[370309141,1751946642239,-500.0,0.00019278,2]
[370309143,1751946642248,-500.0,0.00019278,2]
[370309145,1751946642258,-151.0,0.00019354,2]
[370309147,1751946642267,-249.402357,0.00019354,2]
[370309149,1751946642277,-151.0,0.00019354,2]
[370309151,1751946642287,-168.0,0.00019354,2]
[370309153,1751946642296,-635.0,0.00019386,2]
[370309155,1751946642306,-153.0,0.000194,2]
[370309157,1751946642315,-153.0,0.000194,2]
[370309159,1751946642324,-153.0,0.000194,2]
[370309161,1751946642333,-153.0,0.000194,2]
[370309163,1751946642342,-153.0,0.000194,2]
[370309165,1751946642352,-365.3060782,0.000194,2]
[370309167,1751946642361,-153.0,0.000194,2]
[370309169,1751946642372,-177.7959578,0.000194,2]
[370309171,1751946642380,-153.0,0.000194,2]
[370309173,1751946642390,-159.4922776,0.000194,2]
[370309175,1751946642399,-153.0,0.000194,2]
[370309177,1751946642409,-177.7959578,0.000194,2]
[370309179,1751946642419,-576.0368563,0.000194,2]
[370309181,1751946642428,-177.7959578,0.000194,2]
[370309183,1751946642438,-153.0,0.000194,2]
[370309185,1751946642447,-159.4922776,0.000194,2]
[370309187,1751946642457,-576.0368563,0.000194,2]
[370309189,1751946642467,-176.8906622,0.000194,2]
[370309191,1751946642477,-153.0,0.000194,2]
[370309193,1751946642486,-159.4922776,0.000194,2]
[370309195,1751946642496,-576.0368563,0.000194,2]
[370309197,1751946642506,-177.763542,0.000194,2]
[370309199,1751946642516,-159.4922776,0.000194,2]
[370309201,1751946642525,-153.0,0.000194,2]
[370309203,1751946642535,-576.0368563,0.000194,2]
[370309205,1751946642544,-153.0,0.000194,2]
[370309207,1751946642554,-576.0368563,0.000194,2]
[370309209,1751946642563,-177.763542,0.000194,2]
[370309211,1751946642573,-159.4922776,0.000194,2]
[370309213,1751946642582,-173.02232209,0.000194,2]
[370309216,1751946642602,-460.0,0.00019178,2]
[370309218,1751946642611,-4.74121991,0.000194,2]
[370309220,1751946642621,-159.4922776,0.000194,2]
[370309222,1751946642630,-177.763542,0.000194,2]
[370309224,1751946642639,-576.0368563,0.000194,2]
[370309226,1751946642650,-177.763542,0.000194,2]
[370309228,1751946642660,-151.0,0.000194,2]
[370309230,1751946642669,-151.0,0.000194,2]
[370309231,1751946642678,-576.0368563,0.000194,2]
[370309232,1751946642687,-159.4922776,0.000194,2]
[370309233,1751946642696,-177.763542,0.000194,2]
[370309235,1751946642705,-177.763542,0.000194,2]
[370309237,1751946642714,-151.0,0.000194,2]
[370309240,1751946642724,-178.827432,0.000194,2]
[370309243,1751946642733,-158.0193785,0.000194,2]
[370309246,1751946642742,-177.763542,0.000194,2]
[370309249,1751946642752,-576.0368563,0.000194,2]
[370309252,1751946642761,-162.69863,0.000194,2]
[370309255,1751946642772,-153.0,0.00019425,2]
[370309258,1751946642782,-153.0,0.00019425,2]
[370309261,1751946642791,-153.0,0.00019425,2]
[370309264,1751946642800,-151.0,0.0001944,2]
[370309268,1751946642810,-370.22,0.00019442,3]
[370309272,1751946642819,-264.36776972,0.00019452,2]
[370309276,1751946642829,-1138.78179666,0.00019452,2]
[370309280,1751946642839,-151.0,0.00019452,2]
[370309284,1751946642850,-151.0,0.00019452,2]
[370309288,1751946642859,-648.16,0.00019452,2]
[370309292,1751946642869,-161.037174,0.00019452,2]
[370309296,1751946642879,-151.0,0.00019452,2]
[370309299,1751946642888,-152.878086,0.00019452,2]
[370309302,1751946642898,-460.0,0.00019452,2]
[370309305,1751946642908,-152.93206,0.00019452,2]
[370309308,1751946642918,-1277.2,0.00019452,2]
[370309311,1751946642928,-460.0,0.00019452,2]
[370309313,1751946642938,-212.7666384,0.00019452,2]
[370309315,1751946642948,-460.0,0.00019452,2]
[370309317,1751946642957,-192.97447195,0.00019452,2]
[370309318,1751946642967,-491.86641017,0.00019452,2]
[370309320,1751946642977,-1209.03,0.00019452,2]
[370309322,1751946642987,-460.0,0.00019452,2]
[370309323,1751946642997,-644.03,0.00019452,2]
[370309324,1751946643007,-460.0,0.00019452,2]
[370309326,1751946643018,-460.0,0.00019452,2]
[370309328,1751946643028,-460.0,0.00019452,2]
[370309330,1751946643038,-460.0,0.00019452,2]
[370309332,1751946643048,-860.61,0.00019452,2]
[370309334,1751946643057,-2250.07,0.00019452,2]
[370309336,1751946643067,-1226.14,0.00019452,2]
[370309338,1751946643076,-460.0,0.00019452,2]
[370309340,1751946643086,-460.0,0.00019452,2]
[370309342,1751946643095,-460.0,0.00019452,2]
[370309345,1751946643106,-460.0,0.00019452,2]
[370309347,1751946643116,-460.0,0.00019452,2]
[370309348,1751946643126,-1021.67,0.00019452,2]
[370309350,1751946643135,-460.0,0.00019452,2]
[370309352,1751946643144,-460.0,0.00019452,2]
[370309354,1751946643154,-1482.9,0.00019452,2]
[370309356,1751946643163,-460.0,0.00019452,2]
[370309358,1751946643173,-151.927265,0.00019452,2]
[370309360,1751946643182,-1709.27,0.00019452,2]
[370309362,1751946643192,-460.0,0.00019452,2]
[370309364,1751946643201,-3870.21,0.00019452,2]
[370309366,1751946643210,-679.83,0.00019452,2]
[370309368,1751946643219,-1490.0,0.00019452,2]
[370309370,1751946643230,-460.0,0.00019452,2]
[370309372,1751946643239,-460.0,0.00019452,2]
[370309374,1751946643248,-460.0,0.00019452,2]
[370309376,1751946643258,-460.0,0.00019452,2]
[370309378,1751946643267,-460.0,0.00019452,2]
[370309380,1751946643276,-1135.27,0.00019452,2]
[370309382,1751946643286,-460.0,0.00019452,2]
[370309384,1751946643295,-460.0,0.00019452,2]
[370309386,1751946643305,-460.0,0.00019452,2]
[370309388,1751946643315,-1125.34,0.00019452,2]
[370309390,1751946643324,-460.0,0.00019452,2]
[370309392,1751946643334,-460.0,0.00019452,2]
[370309394,1751946643343,-460.0,0.00019452,2]
[370309396,1751946643353,-460.0,0.00019452,2]
[370309398,1751946643362,-151.0,0.00019452,2]
[370309400,1751946643372,-151.0,0.00019452,2]
[370309402,1751946643382,-460.0,0.00019452,2]
[370309404,1751946643392,-460.0,0.00019452,2]
[370309406,1751946643401,-460.0,0.00019452,2]
[370309409,1751946643411,-1012.69,0.00019452,2]
[370309411,1751946643421,-1394.04,0.00019452,2]
[370309413,1751946643431,-460.0,0.00019452,2]
[370309414,1751946643440,-460.0,0.00019452,2]
[370309416,1751946643449,-460.0,0.00019452,2]
[370309418,1751946643459,-668.73,0.00019452,2]
[370309420,1751946643468,-460.0,0.00019452,2]
[370309422,1751946643478,-460.0,0.00019452,2]
[370309424,1751946643487,-460.0,0.00019452,2]
[370309426,1751946643496,-2168.58,0.00019452,2]
[370309428,1751946643506,-460.0,0.00019452,2]
[370309431,1751946643515,-460.0,0.00019452,2]
[370309432,1751946643525,-2926.69,0.00019452,2]
[370309434,1751946643534,-460.0,0.00019452,2]
[370309437,1751946643544,-510.35,0.00019452,2]
[370309438,1751946643553,-460.0,0.00019452,2]
[370309441,1751946643563,-449.35340395,0.00019452,2]
[370309453,1751946643674,-460.0,0.00019178,2]
[370309455,1751946643684,-91.47659605,0.00019452,2]
[370309457,1751946643693,-369.95512076,0.00019452,2]
[370310451,1751947164843,1881.64195769,2.027e-05,2]
[370310452,1751947291099,151.65710842,0.00018001,2]
[370310453,1751947343456,650.01,0.00027397,120]
[370310454,1751947377129,451.71,0.00027397,120]
[370310456,1751947621574,-153.27088528,0.0001817,2]
[370310457,1751947704244,14513.42457934,0.00027397,120]
[370310458,1751947722642,-1046.72911472,0.0001817,2]
[370310459,1751947722665,-300.0,0.0001817,2]
[370310460,1751947722686,-3653.27088528,0.00018171,2]
[370310510,1751947832613,-5538.50302471,0.00018171,2]
[370310512,1751947832625,-808.22609001,0.00018171,2]
[370310514,1751947832635,-500.0,0.000189,2]
[370310516,1751947832644,-153.27044191,0.000189,2]
[370310518,1751947832655,-1200.0,0.00019061,2]
[370310520,1751947832665,-381.183503,0.00019062,2]
[370310522,1751947832674,-300.0,0.00019075,2]
[370310546,1751947832892,-300.0,0.00019075,2]
[370310548,1751947832902,-300.0,0.00019075,2]
[370310551,1751947832912,-300.0,0.00019075,2]
[370310553,1751947832922,-500.0,0.00019077,2]
[370310555,1751947832931,-29857.68982342,0.00019077,2]
[370310557,1751947832941,-550.85504857,0.00019078,2]
[370310559,1751947832950,-207.4,0.0001916,2]
[370310561,1751947832960,-500.0,0.00019166,2]
[370310563,1751947832970,-500.0,0.00019166,2]
[370310565,1751947832979,-500.0,0.00019166,2]
[370310567,1751947832988,-500.0,0.00019166,2]
[370310569,1751947832997,-500.0,0.00019166,2]
[370310571,1751947833007,-500.0,0.00019166,2]
[370310573,1751947833016,-524.79640373,0.00019166,2]
[370310575,1751947833025,-855.23,0.00019168,3]
[370310577,1751947833035,-427.61,0.00019168,3]
[370310579,1751947833044,-213.81,0.00019168,3]
[370310581,1751947833054,-641.44,0.00019168,3]
[370310583,1751947833064,-168.21,0.00019168,3]
[370310585,1751947833074,-504.65,0.00019168,3]
[370310587,1751947833084,-500.0,0.00019173,2]
[370310589,1751947833094,-503.62367205,0.00019173,2]
[370310591,1751947833105,-160.0,0.00019173,2]
[370310593,1751947833116,-500.0,0.00019177,2]
[370310595,1751947833128,-500.0,0.00019177,2]
[370310597,1751947833143,-484.06905167,0.00019177,2]
[370310600,1751947833153,-500.0,0.00019177,2]
[370310602,1751947833164,-500.0,0.00019177,2]
[370310604,1751947833174,-500.0,0.00019177,2]
[370310606,1751947833184,-500.0,0.00019177,2]
[370310608,1751947833194,-500.0,0.00019177,2]
[370310610,1751947833204,-500.0,0.00019177,2]